[Event "Titled Tuesday Blitz April 11 Late 2023"]
[White "Fernandez, Maria Florencia"]
[Black "Mendez Fortes, Eduardo Jesus"]
[WhiteFideId "116459"]
[BlackFideId "3502376"]
[WhiteElo "2120"]
[BlackElo "2307"]
[Result "0-1"]
[Round "06"]
[TimeControl "180+2"]
[Date "2023.04.11"]
[WhiteClock "0:00:09"]
[BlackClock "0:01:10"]

1. d4 {[%clk 0:03:00]}  Nf6 {[%clk 0:03:00]} 2. c4 {[%clk 0:03:00]}  e6 {[%clk 0:03:00]} 3. Nc3 {[%clk 0:02:59]}  Bb4 {[%clk 0:03:01]} 4. a3 {[%clk 0:02:59]}  Bxc3+ {[%clk 0:03:01]} 5. bxc3 {[%clk 0:03:00]}  c5 {[%clk 0:03:01]} 6. f3 {[%clk 0:02:58]}  d6 {[%clk 0:03:00]} 7. e4 {[%clk 0:02:58]}  b6 {[%clk 0:03:00]} 8. Bg5 {[%clk 0:02:55]}  h6 {[%clk 0:02:59]} 9. Bh4 {[%clk 0:02:54]}  Nc6 {[%clk 0:02:56]} 10. d5 {[%clk 0:02:46]}  Na5 {[%clk 0:02:54]} 11. Bd3 {[%clk 0:02:44]}  g5 {[%clk 0:02:53]} 12. Bf2 {[%clk 0:02:44]}  e5 {[%clk 0:02:53]} 13. Ne2 {[%clk 0:02:42]}  Qd7 {[%clk 0:02:48]} 14. Ng3 {[%clk 0:02:40]}  Ba6 {[%clk 0:02:47]} 15. Nf5 {[%clk 0:02:37]}  O-O-O {[%clk 0:02:41]} 16. O-O {[%clk 0:02:18]}  h5 {[%clk 0:02:27]} 17. Be3 {[%clk 0:02:13]}  Rdg8 {[%clk 0:02:25]} 18. Bc2 {[%clk 0:01:59]}  Bxc4 {[%clk 0:02:20]} 19. Bd3 {[%clk 0:01:44]}  Bxd3 {[%clk 0:02:15]} 20. Qxd3 {[%clk 0:01:44]}  c4 {[%clk 0:02:14]} 21. Qe2 {[%clk 0:01:24]}  h4 {[%clk 0:02:08]} 22. Rab1 {[%clk 0:01:16]}  Nh5 {[%clk 0:02:06]} 23. Rb4 {[%clk 0:01:10]}  Nf4 {[%clk 0:02:04]} 24. Bxf4 {[%clk 0:01:00]}  gxf4 {[%clk 0:02:04]} 25. Kh1 {[%clk 0:00:51]}  Rg6 {[%clk 0:02:02]} 26. Rxc4+ {[%clk 0:00:40]}  Nxc4 {[%clk 0:02:01]} 27. Qxc4+ {[%clk 0:00:41]}  Kb8 {[%clk 0:01:59]} 28. a4 {[%clk 0:00:40]}  h3 {[%clk 0:01:52]} 29. g3 {[%clk 0:00:39]}  Rc8 {[%clk 0:01:50]} 30. Qb4 {[%clk 0:00:37]}  Rc5 {[%clk 0:01:47]} 31. g4 {[%clk 0:00:34]}  Rg8 {[%clk 0:01:39]} 32. Ra1 {[%clk 0:00:31]}  Rgc8 {[%clk 0:01:34]} 33. a5 {[%clk 0:00:28]}  Rxc3 {[%clk 0:01:31]} 34. Kg1 {[%clk 0:00:16]}  R8c5 {[%clk 0:01:11]} 35. axb6 {[%clk 0:00:14]}  a5 {[%clk 0:01:10]} 36. Rxa5 {[%clk 0:00:09]}  Rc1+ {[%clk 0:01:10]} 37. Kf2 {[%clk 0:00:09]}  R5c2+ {[%clk 0:01:10]} 0-1


[Site "https://www.chess.com"]

[Event "Titled Tuesday Blitz April 11 Late 2023"]
[White "Belov, Alexei"]
[Black "Harriott, Tyrell"]
[WhiteFideId "4128206"]
[BlackFideId "2086484"]
[WhiteElo "2421"]
[BlackElo "2107"]
[Result "1-0"]
[Round "06"]
[TimeControl "180+2"]
[Date "2023.04.11"]
[WhiteClock "0:00:47"]
[BlackClock "0:00:28"]

1. e4 {[%clk 0:03:00]}  d6 {[%clk 0:02:59]} 2. d4 {[%clk 0:03:00]}  Nf6 {[%clk 0:02:59]} 3. Nc3 {[%clk 0:03:00]}  Nbd7 {[%clk 0:02:59]} 4. Nf3 {[%clk 0:03:00]}  e5 {[%clk 0:02:59]} 5. Bc4 {[%clk 0:03:00]}  Be7 {[%clk 0:02:59]} 6. O-O {[%clk 0:03:00]}  O-O {[%clk 0:02:58]} 7. a4 {[%clk 0:03:00]}  c6 {[%clk 0:02:58]} 8. Ba2 {[%clk 0:03:00]}  Qc7 {[%clk 0:02:57]} 9. Qe2 {[%clk 0:03:00]}  h6 {[%clk 0:02:57]} 10. Rd1 {[%clk 0:02:59]}  Nh7 {[%clk 0:02:56]} 11. a5 {[%clk 0:02:49]}  Bf6 {[%clk 0:02:54]} 12. Be3 {[%clk 0:02:42]}  Re8 {[%clk 0:02:53]} 13. Qc4 {[%clk 0:02:35]}  Ndf8 {[%clk 0:02:53]} 14. Nd5 {[%clk 0:02:31]}  Qd8 {[%clk 0:02:51]} 15. Nxf6+ {[%clk 0:02:19]}  Qxf6 {[%clk 0:02:51]} 16. dxe5 {[%clk 0:02:17]}  dxe5 {[%clk 0:02:51]} 17. Qb4 {[%clk 0:02:11]}  Bg4 {[%clk 0:02:43]} 18. Qxb7 {[%clk 0:02:01]}  Bxf3 {[%clk 0:02:41]} 19. gxf3 {[%clk 0:02:00]}  Qxf3 {[%clk 0:02:41]} 20. Qxc6 {[%clk 0:01:50]}  Ne6 {[%clk 0:02:37]} 21. Bxe6 {[%clk 0:01:47]}  fxe6 {[%clk 0:02:17]} 22. Rd7 {[%clk 0:01:32]}  Rac8 {[%clk 0:01:55]} 23. Rc7 {[%clk 0:01:31]}  Rcd8 {[%clk 0:01:46]} 24. Qb7 {[%clk 0:01:29]}  Qg4+ {[%clk 0:01:31]} 25. Kf1 {[%clk 0:01:27]}  Rd1+ {[%clk 0:01:23]} 26. Rxd1 {[%clk 0:01:26]}  Qxd1+ {[%clk 0:01:24]} 27. Kg2 {[%clk 0:01:26]}  Qg4+ {[%clk 0:01:24]} 28. Kf1 {[%clk 0:01:26]}  Rd8 {[%clk 0:01:22]} 29. Rd7 {[%clk 0:01:23]}  Rxd7 {[%clk 0:01:05]} 30. Qxd7 {[%clk 0:01:22]}  Nf6 {[%clk 0:01:05]} 31. Qd8+ {[%clk 0:01:11]}  Kh7 {[%clk 0:01:05]} 32. Bxa7 {[%clk 0:01:09]}  Nxe4 {[%clk 0:01:01]} 33. Be3 {[%clk 0:01:05]}  Nf6 {[%clk 0:00:59]} 34. a6 {[%clk 0:01:03]}  Qc4+ {[%clk 0:00:50]} 35. Qd3+ {[%clk 0:01:02]}  Qxd3+ {[%clk 0:00:37]} 36. cxd3 {[%clk 0:01:02]}  Ne8 {[%clk 0:00:34]} 37. Bb6 {[%clk 0:00:58]}  Nd6 {[%clk 0:00:33]} 38. a7 {[%clk 0:00:58]}  Nc8 {[%clk 0:00:34]} 39. a8=Q {[%clk 0:00:56]}  Nxb6 {[%clk 0:00:34]} 40. Qc6 {[%clk 0:00:55]}  Nd5 {[%clk 0:00:32]} 41. Qxe6 {[%clk 0:00:54]}  Nf6 {[%clk 0:00:33]} 42. Qxe5 {[%clk 0:00:54]}  h5 {[%clk 0:00:32]} 43. b4 {[%clk 0:00:53]}  Kg6 {[%clk 0:00:32]} 44. h4 {[%clk 0:00:52]}  Kh7 {[%clk 0:00:31]} 45. b5 {[%clk 0:00:51]}  Kg6 {[%clk 0:00:32]} 46. b6 {[%clk 0:00:50]}  Kh7 {[%clk 0:00:32]} 47. b7 {[%clk 0:00:50]}  Kg6 {[%clk 0:00:31]} 48. Qg5+ {[%clk 0:00:49]}  Kh7 {[%clk 0:00:30]} 49. b8=Q {[%clk 0:00:49]}  Ng8 {[%clk 0:00:30]} 50. Qc7 {[%clk 0:00:48]}  Ne7 {[%clk 0:00:28]} 51. Qcxe7 {[%clk 0:00:47]} 1-0


[Site "https://www.chess.com"]

[Event "Titled Tuesday Blitz April 11 Late 2023"]
[White "Sliwicki, Damian"]
[Black "Bilan, Danila"]
[WhiteFideId "1127128"]
[BlackFideId "24161918"]
[WhiteElo "2030"]
[BlackElo "2182"]
[Result "1-0"]
[Round "06"]
[TimeControl "180+2"]
[Date "2023.04.11"]
[WhiteClock "0:00:06"]
[BlackClock "0:00:04"]

1. e4 {[%clk 0:03:00]}  c6 {[%clk 0:02:58]} 2. Nc3 {[%clk 0:02:59]}  d5 {[%clk 0:02:59]} 3. Qf3 {[%clk 0:02:58]}  d4 {[%clk 0:02:48]} 4. Bc4 {[%clk 0:02:57]}  e6 {[%clk 0:02:43]} 5. Nce2 {[%clk 0:02:56]}  c5 {[%clk 0:02:41]} 6. d3 {[%clk 0:02:54]}  Nc6 {[%clk 0:02:41]} 7. Bf4 {[%clk 0:02:53]}  Bd6 {[%clk 0:02:35]} 8. O-O-O {[%clk 0:02:49]}  Nf6 {[%clk 0:02:24]} 9. g4 {[%clk 0:02:24]}  e5 {[%clk 0:02:16]} 10. Bg5 {[%clk 0:02:19]}  Bxg4 {[%clk 0:01:54]} 11. Qg3 {[%clk 0:02:04]}  Qd7 {[%clk 0:01:26]} 12. f3 {[%clk 0:01:23]}  Be6 {[%clk 0:01:22]} 13. Bxf6 {[%clk 0:01:12]}  gxf6 {[%clk 0:01:16]} 14. Qg7 {[%clk 0:01:09]}  O-O-O {[%clk 0:01:06]} 15. Qxf6 {[%clk 0:01:07]}  Be7 {[%clk 0:00:49]} 16. Bxe6 {[%clk 0:01:00]}  fxe6 {[%clk 0:00:50]} 17. Qh6 {[%clk 0:00:57]}  Rhg8 {[%clk 0:00:36]} 18. h4 {[%clk 0:00:50]}  c4 {[%clk 0:00:29]} 19. dxc4 {[%clk 0:00:47]}  Rg2 {[%clk 0:00:29]} 20. Qxh7 {[%clk 0:00:41]}  Nb4 {[%clk 0:00:26]} 21. a3 {[%clk 0:00:34]}  Qa4 {[%clk 0:00:24]} 22. Rd2 {[%clk 0:00:24]}  d3 {[%clk 0:00:13]} 23. Qxe7 {[%clk 0:00:19]}  Nxc2 {[%clk 0:00:09]} 24. Qxe6+ {[%clk 0:00:15]}  Kb8 {[%clk 0:00:09]} 25. Qxe5+ {[%clk 0:00:15]}  Ka8 {[%clk 0:00:09]} 26. Qc3 {[%clk 0:00:14]}  Ne3 {[%clk 0:00:04]} 27. Nh3 {[%clk 0:00:09]}  Nxc4 {[%clk 0:00:02]} 28. Rxd3 {[%clk 0:00:07]}  Rc8 {[%clk 0:00:03]} 29. Kb1 {[%clk 0:00:06]}  Rxe2 {[%clk 0:00:03]} 30. Rc1 {[%clk 0:00:05]}  Rxb2+ {[%clk 0:00:03]} 31. Qxb2 {[%clk 0:00:06]}  Nxb2 {[%clk 0:00:04]} 32. Rxc8# {[%clk 0:00:06]} 1-0


[Site "https://www.chess.com"]

[Event "Titled Tuesday Blitz April 11 Late 2023"]
[White "Jimenez Almeida, Luis David"]
[Black "Perez Rodriguez, Jennifer"]
[WhiteFideId "22242244"]
[BlackFideId "3507831"]
[WhiteElo "2245"]
[BlackElo "2116"]
[Result "1-0"]
[Round "06"]
[TimeControl "180+2"]
[Date "2023.04.11"]
[WhiteClock "0:00:20"]
[BlackClock "0:00:01"]

1. e4 {[%clk 0:03:00]}  e5 {[%clk 0:02:55]} 2. Nf3 {[%clk 0:03:00]}  Nc6 {[%clk 0:02:52]} 3. Bb5 {[%clk 0:03:00]}  f5 {[%clk 0:02:51]} 4. d3 {[%clk 0:02:59]}  fxe4 {[%clk 0:02:50]} 5. dxe4 {[%clk 0:03:00]}  Nf6 {[%clk 0:02:50]} 6. Be3 {[%clk 0:03:00]}  d6 {[%clk 0:02:47]} 7. Nc3 {[%clk 0:02:59]}  Be7 {[%clk 0:02:47]} 8. h3 {[%clk 0:02:52]}  O-O {[%clk 0:02:46]} 9. Bc4+ {[%clk 0:02:51]}  Kh8 {[%clk 0:02:46]} 10. a3 {[%clk 0:02:50]}  Qe8 {[%clk 0:02:46]} 11. Qd2 {[%clk 0:02:47]}  Nh5 {[%clk 0:02:40]} 12. O-O-O {[%clk 0:02:45]}  Bd8 {[%clk 0:02:32]} 13. Nd5 {[%clk 0:02:34]}  Be6 {[%clk 0:02:31]} 14. Ng5 {[%clk 0:02:32]}  Bg8 {[%clk 0:02:29]} 15. h4 {[%clk 0:02:11]}  Nf4 {[%clk 0:02:18]} 16. g3 {[%clk 0:01:58]}  Nxd5 {[%clk 0:02:14]} 17. exd5 {[%clk 0:01:59]}  Nb8 {[%clk 0:01:54]} 18. Kb1 {[%clk 0:01:57]}  Nd7 {[%clk 0:01:40]} 19. h5 {[%clk 0:01:44]}  Nf6 {[%clk 0:01:36]} 20. h6 {[%clk 0:01:42]}  g6 {[%clk 0:01:35]} 21. f4 {[%clk 0:01:41]}  exf4 {[%clk 0:01:27]} 22. gxf4 {[%clk 0:01:27]}  Ng4 {[%clk 0:01:17]} 23. Bd4+ {[%clk 0:01:24]}  Bf6 {[%clk 0:01:13]} 24. Rde1 {[%clk 0:01:18]}  Qd8 {[%clk 0:01:08]} 25. Ne4 {[%clk 0:01:14]}  Bxd4 {[%clk 0:01:01]} 26. Qxd4+ {[%clk 0:01:15]}  Nf6 {[%clk 0:01:02]} 27. Ng5 {[%clk 0:01:12]}  c5 {[%clk 0:00:50]} 28. dxc6 {[%clk 0:01:04]}  bxc6 {[%clk 0:00:40]} 29. Bxg8 {[%clk 0:00:57]}  Kxg8 {[%clk 0:00:40]} 30. Ne6 {[%clk 0:00:52]}  Qb6 {[%clk 0:00:25]} 31. Qxb6 {[%clk 0:00:44]}  axb6 {[%clk 0:00:26]} 32. Nxf8 {[%clk 0:00:45]}  Rxf8 {[%clk 0:00:26]} 33. f5 {[%clk 0:00:39]}  g5 {[%clk 0:00:25]} 34. Rhg1 {[%clk 0:00:37]}  g4 {[%clk 0:00:25]} 35. Re6 {[%clk 0:00:37]}  Kf7 {[%clk 0:00:26]} 36. Kc1 {[%clk 0:00:36]}  Rd8 {[%clk 0:00:24]} 37. Rge1 {[%clk 0:00:35]}  Rd7 {[%clk 0:00:24]} 38. Kd2 {[%clk 0:00:34]}  c5 {[%clk 0:00:24]} 39. c4 {[%clk 0:00:28]}  d5 {[%clk 0:00:23]} 40. cxd5 {[%clk 0:00:28]}  Rxd5+ {[%clk 0:00:24]} 41. Kc2 {[%clk 0:00:27]}  Rxf5 {[%clk 0:00:21]} 42. Rxb6 {[%clk 0:00:27]}  g3 {[%clk 0:00:21]} 43. Rb7+ {[%clk 0:00:25]}  Kf8 {[%clk 0:00:10]} 44. Rd1 {[%clk 0:00:24]}  g2 {[%clk 0:00:09]} 45. Rg7 {[%clk 0:00:21]}  Rf2+ {[%clk 0:00:08]} 46. Rd2 {[%clk 0:00:20]}  Rxd2+ {[%clk 0:00:02]} 47. Kxd2 {[%clk 0:00:21]}  Ne4+ {[%clk 0:00:01]} 48. Ke3 {[%clk 0:00:20]} 1-0


[Site "https://www.chess.com"]

[Event "Titled Tuesday Blitz April 11 Late 2023"]
[White "Grot, Blazej"]
[Black "Gallegos Diaz, Carlos Alberto"]
[WhiteFideId "21835845"]
[BlackFideId "3900886"]
[WhiteElo "1823"]
[BlackElo "2362"]
[Result "0-1"]
[Round "06"]
[TimeControl "180+2"]
[Date "2023.04.11"]
[WhiteClock "0:00:02"]
[BlackClock "0:00:09"]

1. e4 {[%clk 0:03:00]}  d6 {[%clk 0:02:57]} 2. d4 {[%clk 0:02:58]}  Nf6 {[%clk 0:02:56]} 3. Nc3 {[%clk 0:02:58]}  c6 {[%clk 0:02:55]} 4. f4 {[%clk 0:02:54]}  Qa5 {[%clk 0:02:55]} 5. Bd3 {[%clk 0:02:54]}  e5 {[%clk 0:02:54]} 6. Nf3 {[%clk 0:02:42]}  Nbd7 {[%clk 0:02:53]} 7. Bd2 {[%clk 0:02:38]}  Qc7 {[%clk 0:02:52]} 8. O-O {[%clk 0:02:36]}  Be7 {[%clk 0:02:51]} 9. a4 {[%clk 0:02:24]}  O-O {[%clk 0:02:49]} 10. a5 {[%clk 0:02:05]}  h6 {[%clk 0:02:45]} 11. Qe1 {[%clk 0:02:05]}  Re8 {[%clk 0:02:44]} 12. Kh1 {[%clk 0:02:05]}  Bf8 {[%clk 0:02:42]} 13. h3 {[%clk 0:01:29]}  exd4 {[%clk 0:02:27]} 14. Nxd4 {[%clk 0:01:29]}  Nc5 {[%clk 0:02:27]} 15. Qg3 {[%clk 0:01:19]}  Ncxe4 {[%clk 0:02:16]} 16. Nxe4 {[%clk 0:01:18]}  Nxe4 {[%clk 0:02:17]} 17. Bxe4 {[%clk 0:01:19]}  Rxe4 {[%clk 0:02:16]} 18. Nf3 {[%clk 0:01:11]}  Be6 {[%clk 0:01:33]} 19. Rae1 {[%clk 0:01:09]}  Rxe1 {[%clk 0:01:28]} 20. Rxe1 {[%clk 0:01:10]}  Qd7 {[%clk 0:01:22]} 21. Nd4 {[%clk 0:01:05]}  Re8 {[%clk 0:01:16]} 22. f5 {[%clk 0:01:04]}  Bd5 {[%clk 0:01:08]} 23. Rxe8 {[%clk 0:01:01]}  Qxe8 {[%clk 0:01:09]} 24. Bxh6 {[%clk 0:01:01]}  Qe5 {[%clk 0:01:04]} 25. Qg4 {[%clk 0:00:48]}  Be7 {[%clk 0:00:41]} 26. Ne2 {[%clk 0:00:30]}  Bf6 {[%clk 0:00:36]} 27. Ng3 {[%clk 0:00:26]}  Qe1+ {[%clk 0:00:34]} 28. Kh2 {[%clk 0:00:26]}  Be5 {[%clk 0:00:34]} 29. Bf4 {[%clk 0:00:19]}  Qf2 {[%clk 0:00:33]} 30. Nh5 {[%clk 0:00:17]}  Bxg2 {[%clk 0:00:25]} 31. Qxg2 {[%clk 0:00:03]}  Bxf4+ {[%clk 0:00:25]} 32. Nxf4 {[%clk 0:00:03]}  Qxf4+ {[%clk 0:00:25]} 33. Kh1 {[%clk 0:00:04]}  Qxf5 {[%clk 0:00:22]} 34. a6 {[%clk 0:00:04]}  bxa6 {[%clk 0:00:21]} 35. Qxc6 {[%clk 0:00:04]}  Qf1+ {[%clk 0:00:19]} 36. Kh2 {[%clk 0:00:04]}  Qf2+ {[%clk 0:00:20]} 37. Kh1 {[%clk 0:00:04]}  Qe1+ {[%clk 0:00:19]} 38. Kh2 {[%clk 0:00:05]}  Qd2+ {[%clk 0:00:18]} 39. Kh1 {[%clk 0:00:05]}  g6 {[%clk 0:00:18]} 40. Qc8+ {[%clk 0:00:04]}  Kg7 {[%clk 0:00:18]} 41. Qxa6 {[%clk 0:00:05]}  Qd1+ {[%clk 0:00:16]} 42. Kh2 {[%clk 0:00:05]}  Qxc2+ {[%clk 0:00:16]} 43. Kg3 {[%clk 0:00:03]}  Qb3+ {[%clk 0:00:16]} 44. Kg4 {[%clk 0:00:02]}  f5+ {[%clk 0:00:15]} 45. Kf4 {[%clk 0:00:02]}  Qb4+ {[%clk 0:00:13]} 46. Kg3 {[%clk 0:00:03]}  Qb3+ {[%clk 0:00:11]} 47. Kf4 {[%clk 0:00:03]}  Qb4+ {[%clk 0:00:10]} 48. Kg3 {[%clk 0:00:03]}  Qb6 {[%clk 0:00:11]} 49. Qd3 {[%clk 0:00:01]}  Qc5 {[%clk 0:00:11]} 50. Qa6 {[%clk 0:00:01]}  Qe5+ {[%clk 0:00:11]} 51. Kf3 {[%clk 0:00:01]}  Qd5+ {[%clk 0:00:10]} 52. Kg3 {[%clk 0:00:02]}  g5 {[%clk 0:00:10]} 53. Qxa7+ {[%clk 0:00:02]}  Kg6 {[%clk 0:00:11]} 54. Qa3 {[%clk 0:00:02]}  Qe5+ {[%clk 0:00:11]} 55. Kg2 {[%clk 0:00:02]}  f4 {[%clk 0:00:11]} 56. Qf3 {[%clk 0:00:03]}  Qxb2+ {[%clk 0:00:10]} 57. Kg1 {[%clk 0:00:03]}  Qe5 {[%clk 0:00:11]} 58. Qd3+ {[%clk 0:00:03]}  Kf6 {[%clk 0:00:10]} 59. Qa6 {[%clk 0:00:03]}  Qc5+ {[%clk 0:00:10]} 60. Kg2 {[%clk 0:00:03]}  Qc2+ {[%clk 0:00:10]} 61. Kf3 {[%clk 0:00:03]}  Qc3+ {[%clk 0:00:10]} 62. Kg2 {[%clk 0:00:04]}  Qd2+ {[%clk 0:00:11]} 63. Kg1 {[%clk 0:00:03]}  Qe1+ {[%clk 0:00:10]} 64. Kg2 {[%clk 0:00:04]}  Qg3+ {[%clk 0:00:11]} 65. Kf1 {[%clk 0:00:03]}  Qxh3+ {[%clk 0:00:12]} 66. Ke2 {[%clk 0:00:04]}  Qe3+ {[%clk 0:00:12]} 67. Kf1 {[%clk 0:00:05]}  Qc1+ {[%clk 0:00:09]} 68. Kf2 {[%clk 0:00:05]}  Qc5+ {[%clk 0:00:09]} 69. Kf1 {[%clk 0:00:04]}  g4 {[%clk 0:00:09]} 70. Kg2 {[%clk 0:00:03]}  Qd5+ {[%clk 0:00:09]} 71. Kf2 {[%clk 0:00:03]}  Qd4+ {[%clk 0:00:09]} 72. Kg2 {[%clk 0:00:03]}  Qd2+ {[%clk 0:00:09]} 73. Kg1 {[%clk 0:00:03]}  g3 {[%clk 0:00:09]} 74. Qa1+ {[%clk 0:00:02]}  Kg6 {[%clk 0:00:09]} 75. Qb1+ {[%clk 0:00:02]}  Kh6 {[%clk 0:00:09]} 76. Qa1 {[%clk 0:00:01]}  Qf2+ {[%clk 0:00:08]} 77. Kh1 {[%clk 0:00:02]}  Qh2# {[%clk 0:00:09]} 0-1


[Site "https://www.chess.com"]

[Event "Titled Tuesday Blitz April 11 Late 2023"]
[White "Silva, Caio Henrique Angelico"]
[Black "Seletsky, Grigory"]
[WhiteFideId "22777210"]
[BlackFideId "14112191"]
[WhiteElo "2096"]
[BlackElo "2490"]
[Result "1-0"]
[Round "06"]
[TimeControl "180+2"]
[Date "2023.04.11"]
[WhiteClock "0:00:10"]
[BlackClock "0:00:01"]

1. Nf3 {[%clk 0:03:00]}  c5 {[%clk 0:02:59]} 2. g3 {[%clk 0:03:00]}  Nc6 {[%clk 0:02:57]} 3. d4 {[%clk 0:02:59]}  cxd4 {[%clk 0:02:56]} 4. Nxd4 {[%clk 0:03:00]}  d5 {[%clk 0:02:55]} 5. Bg2 {[%clk 0:03:00]}  e5 {[%clk 0:02:54]} 6. Nxc6 {[%clk 0:03:00]}  bxc6 {[%clk 0:02:54]} 7. c4 {[%clk 0:03:01]}  Be6 {[%clk 0:02:52]} 8. Qa4 {[%clk 0:03:00]}  Qd7 {[%clk 0:02:51]} 9. Nc3 {[%clk 0:02:59]}  Ne7 {[%clk 0:02:49]} 10. cxd5 {[%clk 0:02:54]}  cxd5 {[%clk 0:02:40]} 11. Qxd7+ {[%clk 0:02:54]}  Kxd7 {[%clk 0:02:39]} 12. O-O {[%clk 0:02:54]}  Rd8 {[%clk 0:02:32]} 13. Rd1 {[%clk 0:02:49]}  Kc8 {[%clk 0:02:19]} 14. f4 {[%clk 0:02:47]}  d4 {[%clk 0:02:08]} 15. Ne4 {[%clk 0:02:25]}  f6 {[%clk 0:01:57]} 16. fxe5 {[%clk 0:02:16]}  fxe5 {[%clk 0:01:57]} 17. Bg5 {[%clk 0:02:13]}  h6 {[%clk 0:01:53]} 18. Rac1+ {[%clk 0:02:11]}  Kb8 {[%clk 0:01:53]} 19. Nc5 {[%clk 0:02:02]}  Bc8 {[%clk 0:01:52]} 20. Rd3 {[%clk 0:01:11]}  Rd6 {[%clk 0:01:38]} 21. Bd2 {[%clk 0:00:59]}  Rb6 {[%clk 0:00:48]} 22. b4 {[%clk 0:00:44]}  Nf5 {[%clk 0:00:35]} 23. a4 {[%clk 0:00:39]}  Be7 {[%clk 0:00:27]} 24. b5 {[%clk 0:00:37]}  Ne3 {[%clk 0:00:18]} 25. Bc6 {[%clk 0:00:30]}  Bxc5 {[%clk 0:00:16]} 26. Rxc5 {[%clk 0:00:28]}  Rf8 {[%clk 0:00:16]} 27. Bxe3 {[%clk 0:00:24]}  Bh3 {[%clk 0:00:13]} 28. Bf2 {[%clk 0:00:19]}  a6 {[%clk 0:00:06]} 29. a5 {[%clk 0:00:16]}  Rxb5 {[%clk 0:00:03]} 30. Bxb5 {[%clk 0:00:13]}  axb5 {[%clk 0:00:04]} 31. Rxb5+ {[%clk 0:00:14]}  Kc7 {[%clk 0:00:04]} 32. Rxe5 {[%clk 0:00:14]}  Kd6 {[%clk 0:00:04]} 33. Re4 {[%clk 0:00:11]}  Kd5 {[%clk 0:00:01]} 34. Rexd4+ {[%clk 0:00:11]}  Ke5 {[%clk 0:00:01]} 35. Ra4 {[%clk 0:00:10]} 1-0


[Site "https://www.chess.com"]

[Event "Titled Tuesday Blitz April 11 Late 2023"]
[White "Roberson, Peter T"]
[Black "Alimpic, Aleksa"]
[WhiteFideId "412384"]
[BlackFideId "974323"]
[WhiteElo "2346"]
[BlackElo "2273"]
[Result "1-0"]
[Round "06"]
[TimeControl "180+2"]
[Date "2023.04.11"]
[WhiteClock "0:00:16"]
[BlackClock "0:00:10"]

1. d4 {[%clk 0:02:52]}  d5 {[%clk 0:02:57]} 2. c4 {[%clk 0:02:51]}  e6 {[%clk 0:02:58]} 3. Nf3 {[%clk 0:02:50]}  a6 {[%clk 0:02:58]} 4. e3 {[%clk 0:02:44]}  Nf6 {[%clk 0:02:56]} 5. b3 {[%clk 0:02:32]}  b6 {[%clk 0:02:52]} 6. Bb2 {[%clk 0:02:32]}  Bb7 {[%clk 0:02:53]} 7. Nbd2 {[%clk 0:02:32]}  Nbd7 {[%clk 0:02:53]} 8. Bd3 {[%clk 0:02:32]}  Bd6 {[%clk 0:02:53]} 9. O-O {[%clk 0:02:33]}  O-O {[%clk 0:02:52]} 10. Qe2 {[%clk 0:02:33]}  Ne4 {[%clk 0:02:50]} 11. Rac1 {[%clk 0:02:23]}  f5 {[%clk 0:02:47]} 12. Ne5 {[%clk 0:02:23]}  Ndf6 {[%clk 0:02:17]} 13. f3 {[%clk 0:02:15]}  Nxd2 {[%clk 0:02:14]} 14. Qxd2 {[%clk 0:02:16]}  Bxe5 {[%clk 0:01:28]} 15. dxe5 {[%clk 0:02:16]}  dxc4 {[%clk 0:01:28]} 16. exf6 {[%clk 0:02:10]}  cxd3 {[%clk 0:01:14]} 17. fxg7 {[%clk 0:02:10]}  Rf7 {[%clk 0:01:12]} 18. Rc3 {[%clk 0:02:07]}  Rd7 {[%clk 0:01:10]} 19. Rd1 {[%clk 0:02:05]}  Qg5 {[%clk 0:01:03]} 20. Rxd3 {[%clk 0:02:03]}  Rxd3 {[%clk 0:00:58]} 21. Qxd3 {[%clk 0:02:04]}  Bxf3 {[%clk 0:00:58]} 22. Rd2 {[%clk 0:01:57]}  Bd5 {[%clk 0:00:56]} 23. Qc3 {[%clk 0:01:50]}  c5 {[%clk 0:00:55]} 24. Qe5 {[%clk 0:01:30]}  h5 {[%clk 0:00:42]} 25. Rxd5 {[%clk 0:00:50]}  exd5 {[%clk 0:00:40]} 26. Qxd5+ {[%clk 0:00:51]}  Kh7 {[%clk 0:00:41]} 27. Qxa8 {[%clk 0:00:50]}  Qxe3+ {[%clk 0:00:40]} 28. Kf1 {[%clk 0:00:51]}  Qd3+ {[%clk 0:00:27]} 29. Kf2 {[%clk 0:00:51]}  Qd2+ {[%clk 0:00:21]} 30. Kf3 {[%clk 0:00:43]}  Qd1+ {[%clk 0:00:09]} 31. Kf4 {[%clk 0:00:33]}  Qg4+ {[%clk 0:00:08]} 32. Ke5 {[%clk 0:00:33]}  Qxg7+ {[%clk 0:00:08]} 33. Kxf5 {[%clk 0:00:31]}  Qxb2 {[%clk 0:00:09]} 34. Qb7+ {[%clk 0:00:26]}  Qg7 {[%clk 0:00:09]} 35. Qxg7+ {[%clk 0:00:22]}  Kxg7 {[%clk 0:00:10]} 36. Ke5 {[%clk 0:00:23]}  Kg6 {[%clk 0:00:05]} 37. Kd5 {[%clk 0:00:23]}  Kf5 {[%clk 0:00:04]} 38. Kc6 {[%clk 0:00:23]}  b5 {[%clk 0:00:03]} 39. Kxc5 {[%clk 0:00:23]}  Kf4 {[%clk 0:00:03]} 40. Kb6 {[%clk 0:00:19]}  Ke3 {[%clk 0:00:03]} 41. Kxa6 {[%clk 0:00:20]}  Kf2 {[%clk 0:00:03]} 42. Kxb5 {[%clk 0:00:19]}  Kxg2 {[%clk 0:00:04]} 43. h4 {[%clk 0:00:19]}  Kh3 {[%clk 0:00:03]} 44. a3 {[%clk 0:00:19]}  Kxh4 {[%clk 0:00:04]} 45. a4 {[%clk 0:00:19]}  Kg3 {[%clk 0:00:04]} 46. a5 {[%clk 0:00:20]}  h4 {[%clk 0:00:05]} 47. a6 {[%clk 0:00:20]}  h3 {[%clk 0:00:06]} 48. a7 {[%clk 0:00:21]}  h2 {[%clk 0:00:06]} 49. a8=Q {[%clk 0:00:21]}  Kf2 {[%clk 0:00:06]} 50. Qh1 {[%clk 0:00:21]}  Kg3 {[%clk 0:00:05]} 51. b4 {[%clk 0:00:21]}  Kh3 {[%clk 0:00:02]} 52. Kc5 {[%clk 0:00:20]}  Kg3 {[%clk 0:00:03]} 53. b5 {[%clk 0:00:21]}  Kh3 {[%clk 0:00:04]} 54. b6 {[%clk 0:00:22]}  Kg3 {[%clk 0:00:04]} 55. b7 {[%clk 0:00:22]}  Kh3 {[%clk 0:00:05]} 56. b8=N {[%clk 0:00:21]}  Kg3 {[%clk 0:00:06]} 57. Nc6 {[%clk 0:00:21]}  Kh3 {[%clk 0:00:07]} 58. Nd4 {[%clk 0:00:21]}  Kg3 {[%clk 0:00:08]} 59. Nf3 {[%clk 0:00:20]}  Kh3 {[%clk 0:00:09]} 60. Nxh2 {[%clk 0:00:20]}  Kg3 {[%clk 0:00:10]} 61. Nf1+ {[%clk 0:00:18]}  Kf2 {[%clk 0:00:10]} 62. Kd4 {[%clk 0:00:17]}  Ke2 {[%clk 0:00:09]} 63. Qg2+ {[%clk 0:00:17]}  Ke1 {[%clk 0:00:09]} 64. Ke3 {[%clk 0:00:17]}  Kd1 {[%clk 0:00:10]} 65. Qf2 {[%clk 0:00:16]} 1-0


[Site "https://www.chess.com"]